[Event "Late-Titled-Tuesday-Blitz-June-04-2024"]
[Site "Chess.com"]
[Date "2024.06.04"]
[Round "7"]
[White "Rital44"]
[Black "AustinThomas12345"]
[Result "1-0"]
[WhiteElo "2693"]
[BlackElo "2479"]
[TimeControl "180+1"]
[EndTime "15:13:03 PDT"]
[Termination "Rital44 won by checkmate"]

1. d4 {[%clk 0:03:00.9]} 1... Nf6 {[%clk 0:02:58.6]} 2. Nc3 {[%clk 0:03:01.1]}
2... d5 {[%clk 0:02:58.7]} 3. Bf4 {[%clk 0:03:01.7]} 3... e6 {[%clk 0:02:59]} 4.
e3 {[%clk 0:03:02.3]} 4... Bd6 {[%clk 0:02:59.4]} 5. Nf3 {[%clk 0:03:00.5]} 5...
c5 {[%clk 0:02:57.1]} 6. Ne5 {[%clk 0:02:57.4]} 6... cxd4 {[%clk 0:02:51.5]} 7.
exd4 {[%clk 0:02:57.2]} 7... O-O {[%clk 0:02:48]} 8. g4 {[%clk 0:02:57]} 8...
Ne4 {[%clk 0:02:46.4]} 9. Bd3 {[%clk 0:02:47.1]} 9... Nxc3 {[%clk 0:02:12.3]}
10. bxc3 {[%clk 0:02:48]} 10... f6 {[%clk 0:02:12.2]} 11. Bxh7+ {[%clk
0:02:33.7]} 11... Kxh7 {[%clk 0:02:09.3]} 12. Qd3+ {[%clk 0:02:33.7]} 12... Kg8
{[%clk 0:01:58.3]} 13. Ng6 {[%clk 0:02:34.1]} 13... Bxf4 {[%clk 0:01:57.7]} 14.
Nxf4 {[%clk 0:02:31.8]} 14... e5 {[%clk 0:01:32]} 15. Ng6 {[%clk 0:02:31.9]}
15... Re8 {[%clk 0:01:24.9]} 16. Qh3 {[%clk 0:02:30.1]} 16... exd4+ {[%clk
0:01:23.7]} 17. Kf1 {[%clk 0:02:28.9]} 17... Nc6 {[%clk 0:00:28.6]} 18. Qh8+
{[%clk 0:02:28.5]} 18... Kf7 {[%clk 0:00:29.2]} 19. Qh5 {[%clk 0:02:29.4]} 19...
Kg8 {[%clk 0:00:16.9]} 20. g5 {[%clk 0:02:22.9]} 20... Bf5 {[%clk 0:00:14.4]}
21. Rg1 {[%clk 0:02:21.4]} 21... Bxg6 {[%clk 0:00:13.5]} 22. Qxg6 {[%clk
0:02:22.3]} 22... Ne5 {[%clk 0:00:12.1]} 23. Qh5 {[%clk 0:02:21.9]} 23... Rf8
{[%clk 0:00:11.4]} 24. g6 {[%clk 0:02:21.4]} 24... Nxg6 {[%clk 0:00:11.9]} 25.
Qxg6 {[%clk 0:02:21.5]} 25... Qe8 {[%clk 0:00:11.6]} 26. Qxg7# {[%clk 0:02:20]}
1-0

[Event "Late-Titled-Tuesday-Blitz-June-04-2024"]
[Site "Chess.com"]
[Date "2024.06.04"]
[Round "7"]
[White "VirtualCoach"]
[Black "Heinza9"]
[Result "1-0"]
[WhiteElo "2226"]
[BlackElo "2334"]
[TimeControl "180+1"]
[EndTime "15:13:04 PDT"]
[Termination "VirtualCoach won by checkmate"]

1. e4 {[%clk 0:03:00.9]} 1... e6 {[%clk 0:02:59.8]} 2. d4 {[%clk 0:03:00.2]}
2... d5 {[%clk 0:03:00.1]} 3. Nc3 {[%clk 0:02:59.3]} 3... Nf6 {[%clk 0:02:59.9]}
4. e5 {[%clk 0:02:57.8]} 4... Nfd7 {[%clk 0:02:59.8]} 5. f4 {[%clk 0:02:57.7]}
5... c5 {[%clk 0:03:00.2]} 6. Nf3 {[%clk 0:02:57.6]} 6... Nc6 {[%clk 0:03:00.3]}
7. Be3 {[%clk 0:02:55.8]} 7... a6 {[%clk 0:03:00.3]} 8. Be2 {[%clk 0:02:46.8]}
8... b5 {[%clk 0:02:59.7]} 9. O-O {[%clk 0:02:43.6]} 9... Bb7 {[%clk 0:02:54.4]}
10. Bf2 {[%clk 0:02:41]} 10... Qb6 {[%clk 0:02:50.4]} 11. a3 {[%clk 0:02:40.5]}
11... cxd4 {[%clk 0:02:49.9]} 12. Nxd4 {[%clk 0:02:40.4]} 12... Nxd4 {[%clk
0:02:49.2]} 13. Bxd4 {[%clk 0:02:40]} 13... Bc5 {[%clk 0:02:49.8]} 14. Bxc5
{[%clk 0:02:40.3]} 14... Nxc5 {[%clk 0:02:47.9]} 15. Kh1 {[%clk 0:02:40.5]}
15... g6 {[%clk 0:02:42.4]} 16. Qd4 {[%clk 0:02:30.3]} 16... Nd7 {[%clk
0:02:41.4]} 17. Qxb6 {[%clk 0:02:29.9]} 17... Nxb6 {[%clk 0:02:42.3]} 18. a4
{[%clk 0:02:28.1]} 18... b4 {[%clk 0:02:42]} 19. Na2 {[%clk 0:02:23.6]} 19... a5
{[%clk 0:02:38]} 20. c3 {[%clk 0:02:23.9]} 20... bxc3 {[%clk 0:02:34.2]} 21.
Nxc3 {[%clk 0:02:23.4]} 21... Ke7 {[%clk 0:02:30.2]} 22. Nb5 {[%clk 0:02:22.3]}
22... Ba6 {[%clk 0:02:27.8]} 23. Rfc1 {[%clk 0:02:19.2]} 23... Bxb5 {[%clk
0:02:23.8]} 24. Bxb5 {[%clk 0:02:17.6]} 24... Rhc8 {[%clk 0:02:22.6]} 25. Bc6
{[%clk 0:01:55.2]} 25... Rab8 {[%clk 0:02:18]} 26. b3 {[%clk 0:01:49.6]} 26...
Na8 {[%clk 0:02:09.1]} 27. Bb5 {[%clk 0:01:45]} 27... Nc7 {[%clk 0:02:06.5]} 28.
Bf1 {[%clk 0:01:33.8]} 28... Rb4 {[%clk 0:01:56.1]} 29. Ba6 {[%clk 0:01:30.3]}
29... Nxa6 {[%clk 0:01:40.5]} 30. Rxc8 {[%clk 0:01:29.2]} 30... Rxf4 {[%clk
0:01:36.6]} 31. Rac1 {[%clk 0:01:21.4]} 31... f6 {[%clk 0:01:32.1]} 32. Ra8
{[%clk 0:01:18.6]} 32... Nb4 {[%clk 0:01:30.5]} 33. Rc7# {[%clk 0:01:17.3]} 1-0

[Event "Late-Titled-Tuesday-Blitz-June-04-2024"]
[Site "Chess.com"]
[Date "2024.06.04"]
[Round "7"]
[White "Walter_White_Poland"]
[Black "McCarthyStone"]
[Result "0-1"]
[WhiteElo "2377"]
[BlackElo "2457"]
[TimeControl "180+1"]
[EndTime "15:13:06 PDT"]
[Termination "McCarthyStone won by checkmate"]

1. e4 {[%clk 0:02:52.1]} 1... e5 {[%clk 0:02:58.6]} 2. Nf3 {[%clk 0:02:51.7]}
2... d6 {[%clk 0:02:59.2]} 3. d4 {[%clk 0:02:51.2]} 3... exd4 {[%clk 0:03:00.1]}
4. Nxd4 {[%clk 0:02:51.1]} 4... Nf6 {[%clk 0:03:00.6]} 5. Nc3 {[%clk 0:02:50.8]}
5... g6 {[%clk 0:03:01.2]} 6. Be2 {[%clk 0:02:27.9]} 6... Bg7 {[%clk 0:03:00.8]}
7. h4 {[%clk 0:02:27.7]} 7... O-O {[%clk 0:03:01.7]} 8. h5 {[%clk 0:02:27.1]}
8... Re8 {[%clk 0:03:02.2]} 9. hxg6 {[%clk 0:02:10.4]} 9... hxg6 {[%clk
0:03:01.8]} 10. Bh6 {[%clk 0:02:09]} 10... Bxh6 {[%clk 0:02:56.7]} 11. Rxh6
{[%clk 0:02:08.3]} 11... Nxe4 {[%clk 0:02:57.2]} 12. Nxe4 {[%clk 0:02:05.7]}
12... Rxe4 {[%clk 0:02:58.1]} 13. Qd3 {[%clk 0:02:03.1]} 13... Rh4 {[%clk
0:02:51.6]} 14. Rxh4 {[%clk 0:01:45.8]} 14... Qxh4 {[%clk 0:02:52.5]} 15. O-O-O
{[%clk 0:01:44.3]} 15... Nc6 {[%clk 0:02:44.1]} 16. Nxc6 {[%clk 0:01:35.6]}
16... bxc6 {[%clk 0:02:45]} 17. g3 {[%clk 0:01:26.6]} 17... Qb4 {[%clk
0:02:03.3]} 18. c3 {[%clk 0:01:11.3]} 18... Qa4 {[%clk 0:01:58.6]} 19. Rh1
{[%clk 0:01:08.9]} 19... Bf5 {[%clk 0:01:56.3]} 20. Qd4 {[%clk 0:00:28.1]} 20...
Qc2# {[%clk 0:01:50.6]} 0-1

[Event "Late-Titled-Tuesday-Blitz-June-04-2024"]
[Site "Chess.com"]
[Date "2024.06.04"]
[Round "7"]
[White "TERMINATOR_PC"]
[Black "kalxandria"]
[Result "1-0"]
[WhiteElo "2591"]
[BlackElo "2226"]
[TimeControl "180+1"]
[EndTime "15:13:15 PDT"]
[Termination "TERMINATOR_PC won by resignation"]

1. c4 {[%clk 0:03:00.9]} 1... e5 {[%clk 0:02:58.6]} 2. Nc3 {[%clk 0:03:00.4]}
2... Nc6 {[%clk 0:02:57.5]} 3. g3 {[%clk 0:03:00.4]} 3... g6 {[%clk 0:02:55.5]}
4. Bg2 {[%clk 0:03:00.2]} 4... Bg7 {[%clk 0:02:55.3]} 5. e3 {[%clk 0:02:57.4]}
5... h5 {[%clk 0:02:54]} 6. h3 {[%clk 0:02:54.2]} 6... d6 {[%clk 0:02:50.5]} 7.
d3 {[%clk 0:02:52.6]} 7... Nge7 {[%clk 0:02:46.9]} 8. Nge2 {[%clk 0:02:52.6]}
8... h4 {[%clk 0:02:42.6]} 9. g4 {[%clk 0:02:49.7]} 9... f5 {[%clk 0:02:41.7]}
10. gxf5 {[%clk 0:02:46.8]} 10... gxf5 {[%clk 0:02:37.4]} 11. Qa4 {[%clk
0:02:42.3]} 11... Be6 {[%clk 0:02:32.3]} 12. Bd2 {[%clk 0:02:36.7]} 12... Qd7
{[%clk 0:02:30.2]} 13. O-O-O {[%clk 0:02:33.5]} 13... O-O-O {[%clk 0:02:16.5]}
14. d4 {[%clk 0:02:31.2]} 14... exd4 {[%clk 0:01:54.3]} 15. exd4 {[%clk
0:02:32.1]} 15... d5 {[%clk 0:01:20.8]} 16. Nf4 {[%clk 0:02:00.2]} 16... dxc4
{[%clk 0:00:58.3]} 17. d5 {[%clk 0:01:59.9]} 17... Ne5 {[%clk 0:00:39]} 18. Qxa7
{[%clk 0:01:37.1]} 1-0

[Event "Late-Titled-Tuesday-Blitz-June-04-2024"]
[Site "Chess.com"]
[Date "2024.06.04"]
[Round "7"]
[White "rionelG"]
[Black "HajiyevKanan"]
[Result "0-1"]
[WhiteElo "2316"]
[BlackElo "2522"]
[TimeControl "180+1"]
[EndTime "15:13:29 PDT"]
[Termination "HajiyevKanan won by resignation"]

1. e4 {[%clk 0:03:00.9]} 1... c6 {[%clk 0:03:00.1]} 2. d4 {[%clk 0:03:00.2]}
2... d5 {[%clk 0:03:01]} 3. Nc3 {[%clk 0:02:59.7]} 3... a6 {[%clk 0:03:00.9]} 4.
h3 {[%clk 0:02:26.1]} 4... h6 {[%clk 0:02:59]} 5. Nf3 {[%clk 0:02:22.6]} 5... b5
{[%clk 0:02:54.4]} 6. a3 {[%clk 0:02:02.1]} 6... e6 {[%clk 0:02:54.2]} 7. exd5
{[%clk 0:01:43.8]} 7... cxd5 {[%clk 0:02:52.6]} 8. Bd3 {[%clk 0:01:38.2]} 8...
Nc6 {[%clk 0:02:52.7]} 9. Ne2 {[%clk 0:01:38]} 9... Bd6 {[%clk 0:02:52.7]} 10.
c3 {[%clk 0:01:37.5]} 10... Nf6 {[%clk 0:02:53.2]} 11. O-O {[%clk 0:01:30.9]}
11... Qc7 {[%clk 0:02:53.6]} 12. Re1 {[%clk 0:01:25.7]} 12... Bb7 {[%clk
0:02:53.6]} 13. Bd2 {[%clk 0:01:01.7]} 13... Na5 {[%clk 0:02:53.2]} 14. b3
{[%clk 0:00:53.3]} 14... O-O {[%clk 0:02:50.4]} 15. Qc1 {[%clk 0:00:44.2]} 15...
Nxb3 {[%clk 0:02:44.2]} 16. Qb2 {[%clk 0:00:44.5]} 16... Nxa1 {[%clk 0:02:43.4]}
17. Rxa1 {[%clk 0:00:45.4]} 17... Ne4 {[%clk 0:02:42.6]} 18. Be3 {[%clk
0:00:41.3]} 18... f5 {[%clk 0:02:39.1]} 19. g4 {[%clk 0:00:41.3]} 19... Rac8
{[%clk 0:02:34.1]} 20. gxf5 {[%clk 0:00:38]} 20... exf5 {[%clk 0:02:33.6]} 21.
Kh1 {[%clk 0:00:24.2]} 21... f4 {[%clk 0:02:15.4]} 22. Bxe4 {[%clk 0:00:19.2]}
22... dxe4 {[%clk 0:02:11.3]} 23. Rg1 {[%clk 0:00:09]} 23... exf3 {[%clk
0:02:02.8]} 24. Qc2 {[%clk 0:00:04.9]} 24... fxe2+ {[%clk 0:02:01.4]} 25. Kh2
{[%clk 0:00:05.7]} 25... fxe3+ {[%clk 0:02:01.5]} 0-1

[Event "Late-Titled-Tuesday-Blitz-June-04-2024"]
[Site "Chess.com"]
[Date "2024.06.04"]
[Round "7"]
[White "Der_Balak_3Halak"]
[Black "GlavkonVVS"]
[Result "0-1"]
[WhiteElo "2391"]
[BlackElo "2551"]
[TimeControl "180+1"]
[EndTime "15:13:37 PDT"]
[Termination "GlavkonVVS won by resignation"]

1. e4 {[%clk 0:03:00.9]} 1... Nf6 {[%clk 0:02:59.9]} 2. e5 {[%clk 0:03:00.7]}
2... Nd5 {[%clk 0:03:00.2]} 3. c4 {[%clk 0:03:01.6]} 3... Nb6 {[%clk 0:03:00.2]}
4. c5 {[%clk 0:03:02.5]} 4... Nd5 {[%clk 0:02:59.9]} 5. Bc4 {[%clk 0:03:02.5]}
5... e6 {[%clk 0:02:59.7]} 6. d4 {[%clk 0:03:03.1]} 6... b6 {[%clk 0:02:56.9]}
7. cxb6 {[%clk 0:02:59.5]} 7... axb6 {[%clk 0:02:56.9]} 8. Bxd5 {[%clk
0:02:58.5]} 8... exd5 {[%clk 0:02:56.6]} 9. Nc3 {[%clk 0:02:59.4]} 9... c6
{[%clk 0:02:55.7]} 10. Nf3 {[%clk 0:02:58.4]} 10... Be7 {[%clk 0:02:45.8]} 11.
O-O {[%clk 0:02:57.7]} 11... Na6 {[%clk 0:02:45.9]} 12. Re1 {[%clk 0:02:38.2]}
12... Nc7 {[%clk 0:02:45.9]} 13. Qd3 {[%clk 0:02:32.3]} 13... Ne6 {[%clk
0:02:42.6]} 14. Ne2 {[%clk 0:02:28.4]} 14... Ba6 {[%clk 0:02:42]} 15. Qc2 {[%clk
0:02:19.3]} 15... Bxe2 {[%clk 0:02:41.4]} 16. Qxe2 {[%clk 0:02:17.3]} 16... Ra4
{[%clk 0:02:40.4]} 17. Be3 {[%clk 0:02:10.2]} 17... Qa8 {[%clk 0:02:40]} 18. b3
{[%clk 0:02:09]} 18... Ra3 {[%clk 0:02:33]} 19. Qd2 {[%clk 0:02:02.9]} 19... Qa5
{[%clk 0:02:23.9]} 20. Qc2 {[%clk 0:01:44.2]} 20... O-O {[%clk 0:02:14.7]} 21.
Red1 {[%clk 0:01:38.2]} 21... Ra8 {[%clk 0:02:08.5]} 22. Rd2 {[%clk 0:01:36]}
22... Qb4 {[%clk 0:02:01.3]} 23. Qb2 {[%clk 0:01:24.5]} 23... Qxb3 {[%clk
0:01:39.6]} 24. h3 {[%clk 0:00:59.4]} 24... Qxb2 {[%clk 0:01:38.5]} 25. Rxb2
{[%clk 0:01:00.3]} 25... b5 {[%clk 0:01:35.1]} 26. Nd2 {[%clk 0:00:58.5]} 26...
f6 {[%clk 0:01:13]} 27. f4 {[%clk 0:00:53.6]} 27... Rxe3 {[%clk 0:01:12]} 0-1

[Event "Late-Titled-Tuesday-Blitz-June-04-2024"]
[Site "Chess.com"]
[Date "2024.06.04"]
[Round "7"]
[White "destroyer305"]
[Black "nabukatnezarr"]
[Result "0-1"]
[WhiteElo "2439"]
[BlackElo "2584"]
[TimeControl "180+1"]
[EndTime "15:13:49 PDT"]
[Termination "nabukatnezarr won by resignation"]

1. e4 {[%clk 0:02:58.5]} 1... c6 {[%clk 0:02:59.6]} 2. d4 {[%clk 0:02:58]} 2...
d5 {[%clk 0:03:00.2]} 3. exd5 {[%clk 0:02:58.6]} 3... cxd5 {[%clk 0:03:01.1]} 4.
Bd3 {[%clk 0:02:58.7]} 4... Nc6 {[%clk 0:03:01.5]} 5. c3 {[%clk 0:02:59]} 5...
Nf6 {[%clk 0:03:01.6]} 6. Bf4 {[%clk 0:02:59.3]} 6... Bg4 {[%clk 0:02:59.3]} 7.
Qb3 {[%clk 0:02:59.4]} 7... e5 {[%clk 0:02:59.9]} 8. dxe5 {[%clk 0:02:58.6]}
8... Qe7 {[%clk 0:03:00.5]} 9. Ne2 {[%clk 0:02:51.9]} 9... Nxe5 {[%clk 0:02:17]}
10. Bxe5 {[%clk 0:02:47.8]} 10... Qxe5 {[%clk 0:02:17.9]} 11. Qxb7 {[%clk
0:02:47.9]} 11... Rd8 {[%clk 0:02:17.8]} 12. O-O {[%clk 0:02:39.1]} 12... Bd6
{[%clk 0:02:17.3]} 13. Ng3 {[%clk 0:02:36.5]} 13... O-O {[%clk 0:02:15.4]} 14.
Na3 {[%clk 0:01:54.5]} 14... Rb8 {[%clk 0:01:58.4]} 15. Qxa7 {[%clk 0:01:53.5]}
15... Rxb2 {[%clk 0:01:57.4]} 16. Nb5 {[%clk 0:01:54]} 16... Bb8 {[%clk
0:01:55.3]} 17. Qd4 {[%clk 0:01:53.9]} 17... Qg5 {[%clk 0:01:48.2]} 18. c4
{[%clk 0:01:35]} 18... Be5 {[%clk 0:01:47.7]} 19. Qe3 {[%clk 0:01:28.6]} 19...
Qxe3 {[%clk 0:01:12.8]} 20. fxe3 {[%clk 0:01:28.7]} 20... Rd2 {[%clk 0:01:13.4]}
21. Bf5 {[%clk 0:00:47.2]} 21... Bxa1 {[%clk 0:01:06]} 0-1

[Event "Late-Titled-Tuesday-Blitz-June-04-2024"]
[Site "Chess.com"]
[Date "2024.06.04"]
[Round "7"]
[White "maximnovik"]
[Black "KVAIDAN"]
[Result "1-0"]
[WhiteElo "2499"]
[BlackElo "2350"]
[TimeControl "180+1"]
[EndTime "15:14:17 PDT"]
[Termination "maximnovik won by checkmate"]

1. e4 {[%clk 0:03:00]} 1... e5 {[%clk 0:03:00]} 2. Nf3 {[%clk 0:02:59.9]} 2...
d5 {[%clk 0:03:00.4]} 3. d4 {[%clk 0:02:58.9]} 3... dxe4 {[%clk 0:03:00.5]} 4.
Nxe5 {[%clk 0:02:58.9]} 4... Bd6 {[%clk 0:03:01.4]} 5. Nc4 {[%clk 0:02:55.4]}
5... Nf6 {[%clk 0:03:01.1]} 6. Nxd6+ {[%clk 0:02:55.2]} 6... Qxd6 {[%clk
0:03:01.1]} 7. Be2 {[%clk 0:02:54.5]} 7... Nc6 {[%clk 0:03:01.3]} 8. c3 {[%clk
0:02:51.3]} 8... Nd5 {[%clk 0:03:00.8]} 9. Na3 {[%clk 0:02:39.7]} 9... a6 {[%clk
0:03:00.1]} 10. Nc4 {[%clk 0:02:38.2]} 10... Qg6 {[%clk 0:03:00.3]} 11. g3
{[%clk 0:02:37.6]} 11... Bh3 {[%clk 0:02:58.7]} 12. Ne3 {[%clk 0:02:35]} 12...
O-O-O {[%clk 0:02:57.2]} 13. Nxd5 {[%clk 0:02:34.3]} 13... Rxd5 {[%clk
0:02:57.3]} 14. Be3 {[%clk 0:02:33.8]} 14... f5 {[%clk 0:02:52.8]} 15. Qb3
{[%clk 0:02:30.7]} 15... Rdd8 {[%clk 0:02:49.7]} 16. O-O-O {[%clk 0:02:28.2]}
16... Qf6 {[%clk 0:02:50]} 17. Rd2 {[%clk 0:01:47]} 17... g5 {[%clk 0:02:49.8]}
18. d5 {[%clk 0:01:36.8]} 18... Ne5 {[%clk 0:02:49.3]} 19. Bd4 {[%clk
0:01:34.6]} 19... f4 {[%clk 0:02:47.7]} 20. gxf4 {[%clk 0:01:29.6]} 20... gxf4
{[%clk 0:02:47.6]} 21. c4 {[%clk 0:01:29.6]} 21... Rhe8 {[%clk 0:02:46.9]} 22.
Qxh3+ {[%clk 0:01:28.7]} 22... Kb8 {[%clk 0:02:46.2]} 23. Qc3 {[%clk 0:01:27]}
23... Qg5 {[%clk 0:02:38.2]} 24. Kb1 {[%clk 0:01:23.3]} 24... f3 {[%clk
0:02:26.4]} 25. Bd1 {[%clk 0:01:20.5]} 25... Ng4 {[%clk 0:02:24.1]} 26. Ba4
{[%clk 0:01:13.5]} 26... e3 {[%clk 0:02:13.4]} 27. fxe3 {[%clk 0:01:09.8]} 27...
Rf8 {[%clk 0:02:08.9]} 28. h4 {[%clk 0:01:06.5]} 28... Qg6+ {[%clk 0:02:00.9]}
29. Bc2 {[%clk 0:01:00.4]} 29... Qh5 {[%clk 0:02:00.7]} 30. e4 {[%clk
0:00:57.6]} 30... f2 {[%clk 0:01:57.6]} 31. Rf1 {[%clk 0:00:56.9]} 31... Qxh4
{[%clk 0:01:57.8]} 32. a4 {[%clk 0:00:55.1]} 32... h5 {[%clk 0:01:52.5]} 33. e5
{[%clk 0:00:54.8]} 33... Rf4 {[%clk 0:01:50.9]} 34. e6 {[%clk 0:00:54.7]} 34...
Nh2 {[%clk 0:01:50.3]} 35. Rfxf2 {[%clk 0:00:53.4]} 35... Rxf2 {[%clk
0:01:47.8]} 36. Rxf2 {[%clk 0:00:51]} 36... Ng4 {[%clk 0:01:45.7]} 37. Rf7
{[%clk 0:00:50.9]} 37... Qh1+ {[%clk 0:01:45.6]} 38. Ka2 {[%clk 0:00:50.6]}
38... h4 {[%clk 0:01:44.6]} 39. Be5 {[%clk 0:00:43.5]} 39... h3 {[%clk
0:01:39.7]} 40. Bxc7+ {[%clk 0:00:43.1]} 40... Ka8 {[%clk 0:01:40.2]} 41. Bxd8
{[%clk 0:00:43.2]} 41... h2 {[%clk 0:01:40.7]} 42. Rf8 {[%clk 0:00:38.7]} 42...
Ka7 {[%clk 0:01:36.3]} 43. Qd4+ {[%clk 0:00:37.4]} 43... b6 {[%clk 0:01:36.7]}
44. Qxb6+ {[%clk 0:00:37.1]} 44... Ka8 {[%clk 0:01:34.7]} 45. Bc7# {[%clk
0:00:37]} 1-0

[Event "Late-Titled-Tuesday-Blitz-June-04-2024"]
[Site "Chess.com"]
[Date "2024.06.04"]
[Round "7"]
[White "rezamahdavi2008"]
[Black "IlyaGrigorjev"]
[Result "0-1"]
[WhiteElo "2942"]
[BlackElo "2874"]
[TimeControl "180+1"]
[EndTime "15:14:32 PDT"]
[Termination "IlyaGrigorjev won by resignation"]

1. e4 {[%clk 0:03:00.9]} 1... e5 {[%clk 0:03:00.1]} 2. Nf3 {[%clk 0:02:55.8]}
2... Nc6 {[%clk 0:03:00.5]} 3. Nc3 {[%clk 0:02:56.4]} 3... Nf6 {[%clk
0:03:00.5]} 4. d4 {[%clk 0:02:56.9]} 4... exd4 {[%clk 0:03:01.4]} 5. Nxd4 {[%clk
0:02:57.7]} 5... Bb4 {[%clk 0:03:01.7]} 6. Nxc6 {[%clk 0:02:58.2]} 6... bxc6
{[%clk 0:03:02.6]} 7. Bd3 {[%clk 0:02:58.9]} 7... d5 {[%clk 0:03:03.3]} 8. Bd2
{[%clk 0:02:58.4]} 8... O-O {[%clk 0:03:00.9]} 9. O-O {[%clk 0:02:50.8]} 9...
Re8 {[%clk 0:02:58.6]} 10. Nxd5 {[%clk 0:02:46.4]} 10... Nxd5 {[%clk 0:02:54.1]}
11. exd5 {[%clk 0:02:46.1]} 11... Bxd2 {[%clk 0:02:54.5]} 12. Qxd2 {[%clk
0:02:46.8]} 12... cxd5 {[%clk 0:02:55.1]} 13. Rfe1 {[%clk 0:02:45.9]} 13...
Rxe1+ {[%clk 0:02:51.6]} 14. Rxe1 {[%clk 0:02:46.8]} 14... Be6 {[%clk
0:02:52.2]} 15. b4 {[%clk 0:02:44.7]} 15... Qd6 {[%clk 0:02:50]} 16. Qc3 {[%clk
0:02:37.8]} 16... d4 {[%clk 0:02:45.6]} 17. Qb2 {[%clk 0:02:14.4]} 17... Rb8
{[%clk 0:02:44.9]} 18. b5 {[%clk 0:02:14.7]} 18... c5 {[%clk 0:02:39.1]} 19. a4
{[%clk 0:02:14.1]} 19... c4 {[%clk 0:02:24.1]} 20. Bf1 {[%clk 0:02:14.1]} 20...
c3 {[%clk 0:02:20.1]} 21. Qc1 {[%clk 0:02:10.6]} 21... h6 {[%clk 0:02:11.3]} 22.
Bd3 {[%clk 0:01:55.2]} 22... Rc8 {[%clk 0:02:01.2]} 23. a5 {[%clk 0:01:43.6]}
23... Bc4 {[%clk 0:01:55.5]} 24. Qd1 {[%clk 0:01:26.5]} 24... Qc5 {[%clk
0:01:40.7]} 25. Bxc4 {[%clk 0:01:09.6]} 25... Qxc4 {[%clk 0:01:41.1]} 26. Qg4
{[%clk 0:01:02.1]} 26... d3 {[%clk 0:01:20.8]} 27. Qxc4 {[%clk 0:00:12.4]} 27...
Rxc4 {[%clk 0:01:21.7]} 28. cxd3 {[%clk 0:00:13.3]} 28... Rb4 {[%clk 0:01:22]}
29. b6 {[%clk 0:00:14]} 29... axb6 {[%clk 0:01:21.8]} 30. a6 {[%clk 0:00:14.9]}
30... Ra4 {[%clk 0:01:16.9]} 31. Rc1 {[%clk 0:00:08.7]} 31... b5 {[%clk
0:01:16.7]} 32. Kf1 {[%clk 0:00:09.6]} 32... b4 {[%clk 0:01:16.4]} 33. Rb1
{[%clk 0:00:08.4]} 0-1

[Event "Late-Titled-Tuesday-Blitz-June-04-2024"]
[Site "Chess.com"]
[Date "2024.06.04"]
[Round "7"]
[White "rhwr"]
[Black "PNEPaul"]
[Result "1-0"]
[WhiteElo "2283"]
[BlackElo "1926"]
[TimeControl "180+1"]
[EndTime "15:14:33 PDT"]
[Termination "rhwr won by checkmate"]

1. e4 {[%clk 0:03:00.9]} 1... e5 {[%clk 0:03:00]} 2. Nf3 {[%clk 0:03:00.1]} 2...
Nc6 {[%clk 0:03:00]} 3. Bb5 {[%clk 0:03:00.4]} 3... f5 {[%clk 0:02:59.5]} 4. d3
{[%clk 0:02:59.1]} 4... Nf6 {[%clk 0:02:59.3]} 5. Nc3 {[%clk 0:02:56.7]} 5...
Be7 {[%clk 0:02:59.4]} 6. O-O {[%clk 0:02:55.9]} 6... O-O {[%clk 0:02:59.3]} 7.
Bxc6 {[%clk 0:02:53.8]} 7... dxc6 {[%clk 0:02:58.9]} 8. Nxe5 {[%clk 0:02:52.2]}
8... fxe4 {[%clk 0:02:58.6]} 9. dxe4 {[%clk 0:02:50.2]} 9... Bd6 {[%clk
0:02:40.4]} 10. f4 {[%clk 0:02:38.5]} 10... Qe8 {[%clk 0:02:29.4]} 11. Nf3
{[%clk 0:02:01.5]} 11... Bc5+ {[%clk 0:02:06.9]} 12. Kh1 {[%clk 0:02:00.6]}
12... Ng4 {[%clk 0:02:06.6]} 13. Qe2 {[%clk 0:01:53.1]} 13... Nf2+ {[%clk
0:02:04.4]} 14. Rxf2 {[%clk 0:01:52.6]} 14... Bxf2 {[%clk 0:02:03]} 15. Qxf2
{[%clk 0:01:53.1]} 15... Be6 {[%clk 0:01:54.5]} 16. f5 {[%clk 0:01:49.8]} 16...
Bf7 {[%clk 0:01:54.3]} 17. Bf4 {[%clk 0:01:44.1]} 17... Qe7 {[%clk 0:01:32.5]}
18. Bg5 {[%clk 0:01:36.9]} 18... Qb4 {[%clk 0:01:31.9]} 19. Bd2 {[%clk
0:00:54.4]} 19... Qb6 {[%clk 0:01:29.7]} 20. Qh4 {[%clk 0:00:51.5]} 20... Rae8
{[%clk 0:01:14.1]} 21. Ng5 {[%clk 0:00:39.3]} 21... h6 {[%clk 0:01:13.6]} 22.
Nf3 {[%clk 0:00:38.9]} 22... Qa5 {[%clk 0:00:59.9]} 23. f6 {[%clk 0:00:24]}
23... Qh5 {[%clk 0:00:57.9]} 24. Qg3 {[%clk 0:00:19.5]} 24... g5 {[%clk
0:00:55.5]} 25. Qxc7 {[%clk 0:00:16.6]} 25... Be6 {[%clk 0:00:46.2]} 26. Qg7#
{[%clk 0:00:15.6]} 1-0

[Event "Late-Titled-Tuesday-Blitz-June-04-2024"]
[Site "Chess.com"]
[Date "2024.06.04"]
[Round "7"]
[White "SaraciNderim"]
[Black "topce"]
[Result "1-0"]
[WhiteElo "2891"]
[BlackElo "2488"]
[TimeControl "180+1"]
[EndTime "15:14:39 PDT"]
[Termination "SaraciNderim won on time"]

1. b3 {[%clk 0:03:00.9]} 1... a5 {[%clk 0:02:56.2]} 2. a3 {[%clk 0:03:00.5]}
2... d6 {[%clk 0:02:51.7]} 3. Bb2 {[%clk 0:03:00.3]} 3... e5 {[%clk 0:02:51.8]}
4. e3 {[%clk 0:03:00.6]} 4... f5 {[%clk 0:02:51]} 5. d4 {[%clk 0:03:00.6]} 5...
Nc6 {[%clk 0:02:48]} 6. Nf3 {[%clk 0:02:59.3]} 6... e4 {[%clk 0:02:47.3]} 7. d5
{[%clk 0:02:58.7]} 7... exf3 {[%clk 0:02:29.6]} 8. dxc6 {[%clk 0:02:58.4]} 8...
bxc6 {[%clk 0:02:29.9]} 9. Qxf3 {[%clk 0:02:56.8]} 9... Bd7 {[%clk 0:02:29.5]}
10. Bd3 {[%clk 0:02:52.5]} 10... Qg5 {[%clk 0:02:17.9]} 11. h3 {[%clk
0:02:35.6]} 11... Nf6 {[%clk 0:02:16.4]} 12. Nc3 {[%clk 0:02:32.4]} 12... Be7
{[%clk 0:02:10.6]} 13. Nb5 {[%clk 0:02:31.2]} 13... O-O {[%clk 0:01:50.6]} 14.
Nd4 {[%clk 0:02:09.4]} 14... d5 {[%clk 0:01:49.9]} 15. Nxf5 {[%clk 0:02:02.4]}
15... Bxf5 {[%clk 0:01:44.7]} 16. Qxf5 {[%clk 0:02:01.3]} 16... Qh6 {[%clk
0:01:31.9]} 17. Qe6+ {[%clk 0:01:58.9]} 17... Rf7 {[%clk 0:01:31.7]} 18. Qxc6
{[%clk 0:01:55.6]} 18... Raf8 {[%clk 0:01:31]} 19. Bf5 {[%clk 0:01:49.4]} 19...
Kh8 {[%clk 0:01:20.7]} 20. O-O {[%clk 0:01:49.1]} 20... Bd6 {[%clk 0:01:15.8]}
21. Be6 {[%clk 0:01:40.5]} 21... Ne4 {[%clk 0:01:15.5]} 22. Qxd5 {[%clk
0:01:29.8]} 22... Rxf2 {[%clk 0:01:07.9]} 23. Qxe4 {[%clk 0:01:26.1]} 23... Bh2+
{[%clk 0:00:45.8]} 24. Kxh2 {[%clk 0:01:25.1]} 24... Re8 {[%clk 0:00:19.6]} 25.
Rxf2 {[%clk 0:01:23]} 25... Qg6 {[%clk 0:00:12.5]} 26. Qxg6 {[%clk 0:01:19.3]}
26... hxg6 {[%clk 0:00:13.4]} 27. Bf7 {[%clk 0:01:15.8]} 27... Rxe3 {[%clk
0:00:13.2]} 28. Bxg6 {[%clk 0:01:15.3]} 28... Re8 {[%clk 0:00:10.9]} 29. Raf1
{[%clk 0:01:14.1]} 29... Rg8 {[%clk 0:00:01.5]} 30. Rf8 {[%clk 0:01:12.9]} 1-0